[Event "Titled Tuesday Blitz June 6 Early 2023"]
[White "Shevchenko, Kirill"]
[Black "Bryakin, Mikhail"]
[WhiteFideId "14129574"]
[BlackFideId "4165314"]
[WhiteElo "2603"]
[BlackElo "2464"]
[Result "1-0"]
[Round "6"]
[TimeControl "180+2"]
[Date "2023.06.06"]
[WhiteClock "0:00:05"]
[BlackClock "0:00:01"]
[Board "14"]

1. c4 {[%clk 0:02:52]}  Nf6 {[%clk 0:02:56]} 2. Nc3 {[%clk 0:02:52]}  c5 {[%clk 0:02:55]} 3. Nf3 {[%clk 0:02:52]}  e6 {[%clk 0:02:52]} 4. g3 {[%clk 0:02:52]}  d5 {[%clk 0:02:47]} 5. cxd5 {[%clk 0:02:51]}  Nxd5 {[%clk 0:02:48]} 6. Bg2 {[%clk 0:02:51]}  Nc6 {[%clk 0:02:48]} 7. O-O {[%clk 0:02:50]}  Be7 {[%clk 0:02:48]} 8. d4 {[%clk 0:02:50]}  Nxc3 {[%clk 0:02:42]} 9. bxc3 {[%clk 0:02:51]}  O-O {[%clk 0:02:42]} 10. Rb1 {[%clk 0:02:40]}  Qc7 {[%clk 0:02:37]} 11. Bf4 {[%clk 0:02:39]}  Bd6 {[%clk 0:02:32]} 12. Bxd6 {[%clk 0:02:25]}  Qxd6 {[%clk 0:02:33]} 13. e4 {[%clk 0:02:26]}  cxd4 {[%clk 0:02:28]} 14. cxd4 {[%clk 0:02:27]}  b6 {[%clk 0:02:25]} 15. d5 {[%clk 0:02:10]}  exd5 {[%clk 0:02:15]} 16. exd5 {[%clk 0:02:11]}  Ne7 {[%clk 0:02:08]} 17. Nd4 {[%clk 0:02:06]}  Ba6 {[%clk 0:01:49]} 18. Re1 {[%clk 0:02:05]}  Bc4 {[%clk 0:01:24]} 19. Nc6 {[%clk 0:01:08]}  Ng6 {[%clk 0:01:10]} 20. Qc2 {[%clk 0:01:03]}  b5 {[%clk 0:00:55]} 21. h4 {[%clk 0:01:00]}  Rfe8 {[%clk 0:00:46]} 22. Rxe8+ {[%clk 0:00:59]}  Rxe8 {[%clk 0:00:47]} 23. Nxa7 {[%clk 0:00:59]}  Qd7 {[%clk 0:00:31]} 24. Nc6 {[%clk 0:00:52]}  Bxd5 {[%clk 0:00:28]} 25. Rd1 {[%clk 0:00:52]}  Qxc6 {[%clk 0:00:27]} 26. Qxc6 {[%clk 0:00:52]}  Bxc6 {[%clk 0:00:27]} 27. Bxc6 {[%clk 0:00:53]}  Rb8 {[%clk 0:00:28]} 28. Rb1 {[%clk 0:00:38]}  b4 {[%clk 0:00:28]} 29. a3 {[%clk 0:00:38]}  Ne5 {[%clk 0:00:24]} 30. Bd5 {[%clk 0:00:37]}  Nd3 {[%clk 0:00:20]} 31. Rb3 {[%clk 0:00:35]}  Nc5 {[%clk 0:00:12]} 32. Rxb4 {[%clk 0:00:35]}  Rd8 {[%clk 0:00:13]} 33. Bf3 {[%clk 0:00:33]}  Kf8 {[%clk 0:00:13]} 34. Kg2 {[%clk 0:00:33]}  Rd3 {[%clk 0:00:13]} 35. Rc4 {[%clk 0:00:31]}  Ne6 {[%clk 0:00:10]} 36. a4 {[%clk 0:00:31]}  Ra3 {[%clk 0:00:11]} 37. Bd5 {[%clk 0:00:31]}  Ke7 {[%clk 0:00:11]} 38. Re4 {[%clk 0:00:30]}  Kd6 {[%clk 0:00:11]} 39. Bxe6 {[%clk 0:00:30]}  fxe6 {[%clk 0:00:12]} 40. h5 {[%clk 0:00:29]}  g6 {[%clk 0:00:11]} 41. hxg6 {[%clk 0:00:29]}  hxg6 {[%clk 0:00:11]} 42. Rg4 {[%clk 0:00:25]}  Ke5 {[%clk 0:00:11]} 43. Rb4 {[%clk 0:00:23]}  g5 {[%clk 0:00:10]} 44. Rb5+ {[%clk 0:00:24]}  Kf6 {[%clk 0:00:11]} 45. g4 {[%clk 0:00:22]}  Ra2 {[%clk 0:00:10]} 46. Ra5 {[%clk 0:00:21]}  Ra3 {[%clk 0:00:10]} 47. Ra8 {[%clk 0:00:21]}  Ke5 {[%clk 0:00:11]} 48. a5 {[%clk 0:00:15]}  Ra2 {[%clk 0:00:12]} 49. Kg3 {[%clk 0:00:15]}  Ra3+ {[%clk 0:00:12]} 50. Kg2 {[%clk 0:00:14]}  Ra2 {[%clk 0:00:12]} 51. a6 {[%clk 0:00:14]}  Kf4 {[%clk 0:00:11]} 52. a7 {[%clk 0:00:15]}  Kxg4 {[%clk 0:00:11]} 53. Kf1 {[%clk 0:00:15]}  e5 {[%clk 0:00:10]} 54. Ke1 {[%clk 0:00:14]}  Ra6 {[%clk 0:00:09]} 55. Ke2 {[%clk 0:00:14]}  Ra3 {[%clk 0:00:10]} 56. Kd2 {[%clk 0:00:14]}  Ra6 {[%clk 0:00:09]} 57. Ke3 {[%clk 0:00:15]}  Ra4 {[%clk 0:00:09]} 58. Kd3 {[%clk 0:00:14]}  Ra1 {[%clk 0:00:09]} 59. Kc4 {[%clk 0:00:14]}  Ra2 {[%clk 0:00:09]} 60. Kd5 {[%clk 0:00:14]}  Ra5+ {[%clk 0:00:09]} 61. Ke4 {[%clk 0:00:13]}  Ra2 {[%clk 0:00:06]} 62. Kxe5 {[%clk 0:00:14]}  Re2+ {[%clk 0:00:06]} 63. Kd6 {[%clk 0:00:13]}  Ra2 {[%clk 0:00:06]} 64. f3+ {[%clk 0:00:09]}  Kg3 {[%clk 0:00:03]} 65. Ke5 {[%clk 0:00:09]}  Ra5+ {[%clk 0:00:03]} 66. Ke6 {[%clk 0:00:08]}  Kg2 {[%clk 0:00:03]} 67. Kd6 {[%clk 0:00:05]}  Kg3 {[%clk 0:00:02]} 68. Ke6 {[%clk 0:00:04]}  Kg2 {[%clk 0:00:03]} 69. Kd6 {[%clk 0:00:03]}  Kg3 {[%clk 0:00:02]} 70. Kc6 {[%clk 0:00:04]}  Ra1 {[%clk 0:00:02]} 71. Kd5 {[%clk 0:00:04]}  Ra5+ {[%clk 0:00:02]} 72. Kc4 {[%clk 0:00:05]}  Ra1 {[%clk 0:00:02]} 73. Kd3 {[%clk 0:00:05]}  Ra6 {[%clk 0:00:03]} 74. f4 {[%clk 0:00:05]}  Kg4 {[%clk 0:00:01]} 75. fxg5 {[%clk 0:00:05]} 1-0


[Site "https://www.chess.com"]

[Event "Titled Tuesday Blitz June 6 Early 2023"]
[White "Svane, Rasmus"]
[Black "Ilamparthi A R"]
[WhiteFideId "4657101"]
[BlackFideId "45015775"]
[WhiteElo "2601"]
[BlackElo "2348"]
[Result "1-0"]
[Round "6"]
[TimeControl "180+2"]
[Date "2023.06.06"]
[WhiteClock "0:00:16"]
[BlackClock "0:00:04"]
[Board "16"]

1. Nf3 {[%clk 0:02:56]}  Nf6 {[%clk 0:02:58]} 2. g3 {[%clk 0:02:55]}  g6 {[%clk 0:02:59]} 3. Bg2 {[%clk 0:02:55]}  Bg7 {[%clk 0:02:59]} 4. d4 {[%clk 0:02:56]}  O-O {[%clk 0:03:00]} 5. O-O {[%clk 0:02:56]}  d6 {[%clk 0:03:01]} 6. Re1 {[%clk 0:02:56]}  Nbd7 {[%clk 0:02:55]} 7. e4 {[%clk 0:02:55]}  e5 {[%clk 0:02:55]} 8. Nc3 {[%clk 0:02:56]}  Re8 {[%clk 0:02:47]} 9. a4 {[%clk 0:02:55]}  a5 {[%clk 0:02:45]} 10. h3 {[%clk 0:02:54]}  c6 {[%clk 0:02:45]} 11. Be3 {[%clk 0:02:53]}  Qc7 {[%clk 0:02:45]} 12. Nd2 {[%clk 0:02:48]}  b6 {[%clk 0:02:33]} 13. f4 {[%clk 0:02:34]}  Nh5 {[%clk 0:02:27]} 14. Nf1 {[%clk 0:02:20]}  Ba6 {[%clk 0:02:20]} 15. Kh2 {[%clk 0:02:06]}  Rad8 {[%clk 0:02:12]} 16. Bf3 {[%clk 0:02:00]}  Ndf6 {[%clk 0:02:08]} 17. Qd2 {[%clk 0:01:54]}  d5 {[%clk 0:01:14]} 18. fxe5 {[%clk 0:01:47]}  Nxe4 {[%clk 0:01:13]} 19. Nxe4 {[%clk 0:01:42]}  dxe4 {[%clk 0:01:14]} 20. Bxh5 {[%clk 0:01:43]}  gxh5 {[%clk 0:01:15]} 21. Qf2 {[%clk 0:01:43]}  c5 {[%clk 0:01:13]} 22. c3 {[%clk 0:01:42]}  cxd4 {[%clk 0:01:12]} 23. cxd4 {[%clk 0:01:42]}  Qd7 {[%clk 0:01:12]} 24. Nd2 {[%clk 0:01:31]}  Bb7 {[%clk 0:01:10]} 25. Qf4 {[%clk 0:01:28]}  Rc8 {[%clk 0:00:58]} 26. Re2 {[%clk 0:01:09]}  Rc2 {[%clk 0:00:56]} 27. b3 {[%clk 0:01:09]}  Rec8 {[%clk 0:00:48]} 28. Rf1 {[%clk 0:01:08]}  Qd5 {[%clk 0:00:46]} 29. Ref2 {[%clk 0:01:08]}  R8c3 {[%clk 0:00:43]} 30. Nc4 {[%clk 0:00:51]}  Ba6 {[%clk 0:00:33]} 31. Nxb6 {[%clk 0:00:39]}  Qe6 {[%clk 0:00:20]} 32. d5 {[%clk 0:00:36]}  Qxe5 {[%clk 0:00:20]} 33. Qxf7+ {[%clk 0:00:36]}  Kh8 {[%clk 0:00:21]} 34. Nd7 {[%clk 0:00:29]}  Qd6 {[%clk 0:00:05]} 35. Qe8+ {[%clk 0:00:28]}  Bf8 {[%clk 0:00:06]} 36. Nxf8 {[%clk 0:00:22]}  Rxe3 {[%clk 0:00:04]} 37. Ne6+ {[%clk 0:00:16]} 1-0


[Site "https://www.chess.com"]

[Event "Titled Tuesday Blitz June 6 Early 2023"]
[White "Ibarra Jerez, Jose Carlos"]
[Black "Weetik, Vjacheslav"]
[WhiteFideId "2226332"]
[BlackFideId "4153472"]
[WhiteElo "2631"]
[BlackElo "2469"]
[Result "1-0"]
[Round "6"]
[TimeControl "180+2"]
[Date "2023.06.06"]
[WhiteClock "0:00:51"]
[BlackClock "0:00:16"]
[Board "20"]

1. e4 {[%clk 0:03:00]}  c6 {[%clk 0:03:00]} 2. Nf3 {[%clk 0:03:00]}  d5 {[%clk 0:03:00]} 3. d3 {[%clk 0:03:01]}  g6 {[%clk 0:03:00]} 4. Qe2 {[%clk 0:03:00]}  Bg7 {[%clk 0:02:58]} 5. g3 {[%clk 0:03:00]}  dxe4 {[%clk 0:02:39]} 6. dxe4 {[%clk 0:02:59]}  e5 {[%clk 0:02:40]} 7. Bg2 {[%clk 0:02:59]}  Ne7 {[%clk 0:02:40]} 8. O-O {[%clk 0:02:59]}  O-O {[%clk 0:02:41]} 9. a4 {[%clk 0:02:59]}  Qc7 {[%clk 0:02:35]} 10. Na3 {[%clk 0:02:55]}  f6 {[%clk 0:02:29]} 11. b3 {[%clk 0:02:44]}  Be6 {[%clk 0:02:24]} 12. Nc4 {[%clk 0:02:43]}  Na6 {[%clk 0:02:09]} 13. Ba3 {[%clk 0:02:39]}  Rfd8 {[%clk 0:01:49]} 14. Rfd1 {[%clk 0:02:38]}  c5 {[%clk 0:01:38]} 15. Ne3 {[%clk 0:02:25]}  Nb4 {[%clk 0:01:24]} 16. c3 {[%clk 0:02:17]}  Nbc6 {[%clk 0:01:24]} 17. Qc2 {[%clk 0:02:14]}  b6 {[%clk 0:01:22]} 18. Bf1 {[%clk 0:02:12]}  Bh6 {[%clk 0:01:21]} 19. Bc4 {[%clk 0:01:55]}  Bxc4 {[%clk 0:01:18]} 20. Nxc4 {[%clk 0:01:56]}  Rxd1+ {[%clk 0:01:13]} 21. Rxd1 {[%clk 0:01:56]}  Rd8 {[%clk 0:01:14]} 22. h4 {[%clk 0:01:51]}  Qc8 {[%clk 0:01:04]} 23. Kg2 {[%clk 0:01:50]}  Qg4 {[%clk 0:00:49]} 24. Rxd8+ {[%clk 0:01:30]}  Nxd8 {[%clk 0:00:49]} 25. Qd3 {[%clk 0:01:30]}  Ne6 {[%clk 0:00:49]} 26. Kh2 {[%clk 0:01:16]}  Nf4 {[%clk 0:00:35]} 27. Qd8+ {[%clk 0:01:04]}  Bf8 {[%clk 0:00:35]} 28. Ng1 {[%clk 0:00:56]}  Ne2 {[%clk 0:00:16]} 29. Qd1 {[%clk 0:00:51]} 1-0


[Site "https://www.chess.com"]

[Event "Titled Tuesday Blitz June 6 Early 2023"]
[White "Danielyan, Vahe"]
[Black "Samadov, Read"]
[WhiteFideId "13304828"]
[BlackFideId "13417444"]
[WhiteElo "2423"]
[BlackElo "2355"]
[Result "0-1"]
[Round "6"]
[TimeControl "180+2"]
[Date "2023.06.06"]
[WhiteClock "0:00:01"]
[BlackClock "0:00:07"]
[Board "22"]

1. d4 {[%clk 0:03:00]}  Nf6 {[%clk 0:02:59]} 2. c4 {[%clk 0:03:00]}  g6 {[%clk 0:02:59]} 3. Nc3 {[%clk 0:03:00]}  Bg7 {[%clk 0:03:00]} 4. g3 {[%clk 0:02:58]}  d5 {[%clk 0:02:59]} 5. cxd5 {[%clk 0:02:51]}  Nxd5 {[%clk 0:02:59]} 6. Bg2 {[%clk 0:02:50]}  Nb6 {[%clk 0:03:00]} 7. Nf3 {[%clk 0:02:50]}  O-O {[%clk 0:03:00]} 8. O-O {[%clk 0:02:50]}  Nc6 {[%clk 0:03:00]} 9. d5 {[%clk 0:02:38]}  Na5 {[%clk 0:03:00]} 10. e4 {[%clk 0:02:37]}  c6 {[%clk 0:03:00]} 11. dxc6 {[%clk 0:02:26]}  Nxc6 {[%clk 0:02:59]} 12. Qe2 {[%clk 0:02:20]}  Bg4 {[%clk 0:02:56]} 13. Be3 {[%clk 0:02:19]}  Qc8 {[%clk 0:02:41]} 14. Rfd1 {[%clk 0:02:18]}  Qe6 {[%clk 0:02:07]} 15. h3 {[%clk 0:02:13]}  Bxf3 {[%clk 0:02:01]} 16. Bxf3 {[%clk 0:02:11]}  Ne5 {[%clk 0:01:56]} 17. Bg2 {[%clk 0:02:09]}  Rfd8 {[%clk 0:01:53]} 18. Nd5 {[%clk 0:02:06]}  Rac8 {[%clk 0:01:46]} 19. b3 {[%clk 0:01:36]}  h5 {[%clk 0:01:37]} 20. Nxb6 {[%clk 0:01:33]}  axb6 {[%clk 0:01:36]} 21. Rxd8+ {[%clk 0:01:34]}  Rxd8 {[%clk 0:01:36]} 22. Rd1 {[%clk 0:01:35]}  Rxd1+ {[%clk 0:00:55]} 23. Qxd1 {[%clk 0:01:36]}  Nd7 {[%clk 0:00:50]} 24. f4 {[%clk 0:01:26]}  h4 {[%clk 0:00:47]} 25. g4 {[%clk 0:01:24]}  Nc5 {[%clk 0:00:44]} 26. e5 {[%clk 0:01:13]}  Qc8 {[%clk 0:00:36]} 27. Qc2 {[%clk 0:01:05]}  Qd7 {[%clk 0:00:33]} 28. Qd2 {[%clk 0:00:44]}  Qc7 {[%clk 0:00:29]} 29. Qd5 {[%clk 0:00:35]}  Ne6 {[%clk 0:00:18]} 30. f5 {[%clk 0:00:32]}  gxf5 {[%clk 0:00:18]} 31. gxf5 {[%clk 0:00:33]}  Nc5 {[%clk 0:00:18]} 32. Bf4 {[%clk 0:00:23]}  e6 {[%clk 0:00:17]} 33. Qd6 {[%clk 0:00:18]}  Qc8 {[%clk 0:00:17]} 34. f6 {[%clk 0:00:17]}  Bf8 {[%clk 0:00:17]} 35. Qd1 {[%clk 0:00:17]}  Qd7 {[%clk 0:00:10]} 36. Qg4+ {[%clk 0:00:16]}  Kh7 {[%clk 0:00:10]} 37. Qxh4+ {[%clk 0:00:15]}  Kg8 {[%clk 0:00:10]} 38. Qg4+ {[%clk 0:00:15]}  Kh7 {[%clk 0:00:11]} 39. b4 {[%clk 0:00:14]}  Qd4+ {[%clk 0:00:08]} 40. Kh2 {[%clk 0:00:14]}  Nd3 {[%clk 0:00:07]} 41. Qh5+ {[%clk 0:00:13]}  Kg8 {[%clk 0:00:08]} 42. Bg3 {[%clk 0:00:12]}  Qe3 {[%clk 0:00:04]} 43. Qg4+ {[%clk 0:00:10]}  Kh8 {[%clk 0:00:04]} 44. a3 {[%clk 0:00:08]}  Bh6 {[%clk 0:00:03]} 45. Qe4 {[%clk 0:00:05]}  Qd2 {[%clk 0:00:02]} 46. Qxb7 {[%clk 0:00:04]}  Nf4 {[%clk 0:00:02]} 47. Qf3 {[%clk 0:00:03]}  Nxg2 {[%clk 0:00:02]} 48. Qxg2 {[%clk 0:00:04]}  Qe3 {[%clk 0:00:02]} 49. a4 {[%clk 0:00:03]}  Qd3 {[%clk 0:00:02]} 50. a5 {[%clk 0:00:03]}  bxa5 {[%clk 0:00:02]} 51. bxa5 {[%clk 0:00:04]}  Qa3 {[%clk 0:00:02]} 52. Qa8+ {[%clk 0:00:03]}  Kh7 {[%clk 0:00:03]} 53. Qe4+ {[%clk 0:00:04]}  Kh8 {[%clk 0:00:03]} 54. Bf4 {[%clk 0:00:03]}  Qb2+ {[%clk 0:00:03]} 55. Kg3 {[%clk 0:00:03]}  Qc3+ {[%clk 0:00:03]} 56. Kh4 {[%clk 0:00:03]}  Bf8 {[%clk 0:00:02]} 57. Be3 {[%clk 0:00:02]}  Qxa5 {[%clk 0:00:02]} 58. Qf3 {[%clk 0:00:02]}  Qe1+ {[%clk 0:00:03]} 59. Bf2 {[%clk 0:00:02]}  Qxe5 {[%clk 0:00:03]} 60. Qh5+ {[%clk 0:00:02]}  Qxh5+ {[%clk 0:00:03]} 61. Kxh5 {[%clk 0:00:03]}  Bd6 {[%clk 0:00:03]} 62. Be3 {[%clk 0:00:03]}  Be5 {[%clk 0:00:03]} 63. Bg5 {[%clk 0:00:03]}  Kh7 {[%clk 0:00:04]} 64. h4 {[%clk 0:00:03]}  Bc3 {[%clk 0:00:04]} 65. Kg4 {[%clk 0:00:03]}  Kg6 {[%clk 0:00:04]} 66. h5+ {[%clk 0:00:03]}  Kh7 {[%clk 0:00:04]} 67. Bh4 {[%clk 0:00:03]}  Bd4 {[%clk 0:00:03]} 68. Bg5 {[%clk 0:00:04]}  Bc5 {[%clk 0:00:04]} 69. Kf4 {[%clk 0:00:04]}  Bb4 {[%clk 0:00:03]} 70. Ke4 {[%clk 0:00:04]}  Bd6 {[%clk 0:00:03]} 71. Kd4 {[%clk 0:00:04]}  Bf8 {[%clk 0:00:03]} 72. Kc4 {[%clk 0:00:04]}  Bh6 {[%clk 0:00:03]} 73. Bh4 {[%clk 0:00:03]}  Bc1 {[%clk 0:00:03]} 74. Kc5 {[%clk 0:00:01]}  Kh6 {[%clk 0:00:04]} 75. Kd6 {[%clk 0:00:01]}  Kxh5 {[%clk 0:00:04]} 76. Ke7 {[%clk 0:00:01]}  Kg6 {[%clk 0:00:04]} 77. Bg3 {[%clk 0:00:01]}  Bb2 {[%clk 0:00:03]} 78. Bh4 {[%clk 0:00:02]}  Bc3 {[%clk 0:00:03]} 79. Bg3 {[%clk 0:00:01]}  Bxf6+ {[%clk 0:00:02]} 80. Kd6 {[%clk 0:00:02]}  Bg5 {[%clk 0:00:03]} 81. Ke5 {[%clk 0:00:01]}  Be7 {[%clk 0:00:02]} 82. Ke4 {[%clk 0:00:02]}  f5+ {[%clk 0:00:02]} 83. Kf3 {[%clk 0:00:02]}  Kf7 {[%clk 0:00:03]} 84. Bc7 {[%clk 0:00:02]}  Bf6 {[%clk 0:00:03]} 85. Kf4 {[%clk 0:00:02]}  Ke7 {[%clk 0:00:03]} 86. Kf3 {[%clk 0:00:02]}  e5 {[%clk 0:00:03]} 87. Bb8 {[%clk 0:00:02]}  Ke6 {[%clk 0:00:04]} 88. Ke3 {[%clk 0:00:03]}  Bg5+ {[%clk 0:00:04]} 89. Ke2 {[%clk 0:00:04]}  e4 {[%clk 0:00:04]} 90. Ba7 {[%clk 0:00:05]}  f4 {[%clk 0:00:05]} 91. Kf2 {[%clk 0:00:05]}  Kf5 {[%clk 0:00:05]} 92. Ke2 {[%clk 0:00:05]}  f3+ {[%clk 0:00:05]} 93. Kf2 {[%clk 0:00:05]}  Bh4+ {[%clk 0:00:06]} 94. Ke3 {[%clk 0:00:05]}  Bg5+ {[%clk 0:00:05]} 95. Kf2 {[%clk 0:00:05]}  Bf4 {[%clk 0:00:05]} 96. Bb6 {[%clk 0:00:05]}  Ke6 {[%clk 0:00:05]} 97. Ba7 {[%clk 0:00:05]}  Kd5 {[%clk 0:00:06]} 98. Bb6 {[%clk 0:00:04]}  Kc4 {[%clk 0:00:06]} 99. Ba7 {[%clk 0:00:04]}  Kd3 {[%clk 0:00:07]} 100. Bb6 {[%clk 0:00:04]}  Be5 {[%clk 0:00:07]} 101. Bd8 {[%clk 0:00:02]}  Bd4+ {[%clk 0:00:08]} 102. Kg3 {[%clk 0:00:01]}  Ke2 {[%clk 0:00:07]} 0-1


[Site "https://www.chess.com"]

[Event "Titled Tuesday Blitz June 6 Early 2023"]
[White "Nguyen, Ngoc Truong Son"]
[Black "Csonka, Balazs"]
[WhiteFideId "12401110"]
[BlackFideId "742910"]
[WhiteElo "2556"]
[BlackElo "2404"]
[Result "1-0"]
[Round "6"]
[TimeControl "180+2"]
[Date "2023.06.06"]
[WhiteClock "0:00:22"]
[BlackClock "0:00:05"]
[Board "23"]

1. d4 {[%clk 0:02:54]}  d5 {[%clk 0:03:00]} 2. c4 {[%clk 0:02:54]}  e6 {[%clk 0:03:00]} 3. Nc3 {[%clk 0:02:53]}  Bb4 {[%clk 0:02:55]} 4. cxd5 {[%clk 0:02:51]}  exd5 {[%clk 0:02:56]} 5. Bf4 {[%clk 0:02:51]}  c6 {[%clk 0:02:53]} 6. e3 {[%clk 0:02:51]}  Bf5 {[%clk 0:02:50]} 7. Bd3 {[%clk 0:02:50]}  Bxd3 {[%clk 0:02:49]} 8. Qxd3 {[%clk 0:02:51]}  Nf6 {[%clk 0:02:45]} 9. Ne2 {[%clk 0:02:51]}  O-O {[%clk 0:02:44]} 10. O-O {[%clk 0:02:51]}  Re8 {[%clk 0:02:44]} 11. f3 {[%clk 0:02:49]}  Nbd7 {[%clk 0:02:24]} 12. Rad1 {[%clk 0:02:33]}  Nf8 {[%clk 0:02:01]} 13. e4 {[%clk 0:02:30]}  Ne6 {[%clk 0:01:53]} 14. e5 {[%clk 0:02:21]}  Nxf4 {[%clk 0:01:37]} 15. Nxf4 {[%clk 0:02:22]}  Nd7 {[%clk 0:01:37]} 16. Nfe2 {[%clk 0:02:15]}  Nb6 {[%clk 0:01:13]} 17. b3 {[%clk 0:02:01]}  c5 {[%clk 0:00:54]} 18. f4 {[%clk 0:01:56]}  Rc8 {[%clk 0:00:50]} 19. Kh1 {[%clk 0:01:40]}  c4 {[%clk 0:00:42]} 20. Qf3 {[%clk 0:01:30]}  cxb3 {[%clk 0:00:33]} 21. axb3 {[%clk 0:01:31]}  Re6 {[%clk 0:00:33]} 22. f5 {[%clk 0:01:21]}  Rec6 {[%clk 0:00:29]} 23. Rd3 {[%clk 0:01:16]}  Bxc3 {[%clk 0:00:16]} 24. Nxc3 {[%clk 0:01:17]}  Qh4 {[%clk 0:00:12]} 25. h3 {[%clk 0:01:08]}  h6 {[%clk 0:00:12]} 26. e6 {[%clk 0:00:59]}  Qf6 {[%clk 0:00:08]} 27. exf7+ {[%clk 0:00:33]}  Qxf7 {[%clk 0:00:09]} 28. Re1 {[%clk 0:00:32]}  Kh8 {[%clk 0:00:05]} 29. Re5 {[%clk 0:00:30]}  Re8 {[%clk 0:00:04]} 30. Nxd5 {[%clk 0:00:20]}  Nxd5 {[%clk 0:00:03]} 31. Qxd5 {[%clk 0:00:21]}  Rf8 {[%clk 0:00:04]} 32. Qxf7 {[%clk 0:00:20]}  Rxf7 {[%clk 0:00:05]} 33. d5 {[%clk 0:00:21]}  Rd6 {[%clk 0:00:05]} 34. g4 {[%clk 0:00:21]}  Rfd7 {[%clk 0:00:05]} 35. Kg2 {[%clk 0:00:21]}  Kg8 {[%clk 0:00:05]} 36. Kf3 {[%clk 0:00:21]}  Kf7 {[%clk 0:00:06]} 37. Ke4 {[%clk 0:00:22]}  b5 {[%clk 0:00:06]} 38. Re6 {[%clk 0:00:22]}  a5 {[%clk 0:00:05]} 39. Ke5 {[%clk 0:00:22]} 1-0


[Site "https://www.chess.com"]

[Event "Titled Tuesday Blitz June 6 Early 2023"]
[White "Kashlinskaya, Alina"]
[Black "Rustemov, Alexander"]
[WhiteFideId "4198026"]
[BlackFideId "4119002"]
[WhiteElo "2383"]
[BlackElo "2878"]
[Result "0-1"]
[Round "6"]
[TimeControl "180+2"]
[Date "2023.06.06"]
[WhiteClock "0:01:00"]
[BlackClock "0:00:08"]
[Board "26"]

1. Nf3 {[%clk 0:02:54]}  d5 {[%clk 0:02:59]} 2. g3 {[%clk 0:02:54]}  Nf6 {[%clk 0:02:59]} 3. Bg2 {[%clk 0:02:55]}  Bf5 {[%clk 0:02:59]} 4. O-O {[%clk 0:02:55]}  e6 {[%clk 0:02:59]} 5. d3 {[%clk 0:02:55]}  c6 {[%clk 0:02:48]} 6. Nbd2 {[%clk 0:02:55]}  h6 {[%clk 0:02:47]} 7. c4 {[%clk 0:02:53]}  Be7 {[%clk 0:02:45]} 8. b3 {[%clk 0:02:51]}  O-O {[%clk 0:02:45]} 9. Bb2 {[%clk 0:02:52]}  a5 {[%clk 0:02:44]} 10. a3 {[%clk 0:02:52]}  Nbd7 {[%clk 0:02:44]} 11. Qc1 {[%clk 0:02:44]}  Re8 {[%clk 0:02:40]} 12. Bc3 {[%clk 0:02:44]}  Bd6 {[%clk 0:02:36]} 13. e4 {[%clk 0:02:21]}  dxe4 {[%clk 0:02:33]} 14. dxe4 {[%clk 0:02:22]}  Nxe4 {[%clk 0:02:27]} 15. Nxe4 {[%clk 0:02:22]}  Bxe4 {[%clk 0:02:27]} 16. Rd1 {[%clk 0:02:22]}  Qe7 {[%clk 0:01:47]} 17. Qd2 {[%clk 0:02:21]}  Bxf3 {[%clk 0:01:46]} 18. Bxf3 {[%clk 0:01:51]}  Be5 {[%clk 0:01:46]} 19. Qxd7 {[%clk 0:01:39]}  Bxc3 {[%clk 0:01:45]} 20. Ra2 {[%clk 0:01:30]}  Rad8 {[%clk 0:01:42]} 21. Qxe7 {[%clk 0:01:30]}  Rxd1+ {[%clk 0:01:42]} 22. Bxd1 {[%clk 0:01:31]}  Rxe7 {[%clk 0:01:42]} 23. Rc2 {[%clk 0:01:30]}  Rd7 {[%clk 0:01:38]} 24. Bf3 {[%clk 0:01:29]}  Bd2 {[%clk 0:01:16]} 25. Kf1 {[%clk 0:01:26]}  Bg5 {[%clk 0:01:02]} 26. Ke2 {[%clk 0:01:25]}  c5 {[%clk 0:00:51]} 27. Rb2 {[%clk 0:01:19]}  Be7 {[%clk 0:00:44]} 28. Rd2 {[%clk 0:01:18]}  Rc7 {[%clk 0:00:45]} 29. h4 {[%clk 0:01:16]}  g6 {[%clk 0:00:43]} 30. h5 {[%clk 0:01:16]}  g5 {[%clk 0:00:43]} 31. g4 {[%clk 0:01:16]}  Kf8 {[%clk 0:00:42]} 32. Be4 {[%clk 0:01:16]}  Ke8 {[%clk 0:00:41]} 33. f3 {[%clk 0:01:16]}  b6 {[%clk 0:00:32]} 34. Rd3 {[%clk 0:01:15]}  Rc8 {[%clk 0:00:24]} 35. Bb7 {[%clk 0:01:15]}  Rc7 {[%clk 0:00:18]} 36. Be4 {[%clk 0:01:15]}  Kf8 {[%clk 0:00:17]} 37. Rd2 {[%clk 0:01:14]}  Kg7 {[%clk 0:00:17]} 38. Rd3 {[%clk 0:01:14]}  Kf6 {[%clk 0:00:18]} 39. Ke3 {[%clk 0:01:07]}  Ke5 {[%clk 0:00:18]} 40. Rd1 {[%clk 0:01:07]}  Bd6 {[%clk 0:00:14]} 41. Rd3 {[%clk 0:01:05]}  Rd7 {[%clk 0:00:13]} 42. Bc6 {[%clk 0:01:02]}  Rd8 {[%clk 0:00:13]} 43. Be4 {[%clk 0:01:03]}  Rb8 {[%clk 0:00:11]} 44. a4 {[%clk 0:01:02]}  Rd8 {[%clk 0:00:10]} 45. Bc6 {[%clk 0:01:02]}  Kf6 {[%clk 0:00:11]} 46. Be4 {[%clk 0:01:01]}  Ke7 {[%clk 0:00:11]} 47. Bc6 {[%clk 0:01:01]}  Bf4+ {[%clk 0:00:10]} 48. Ke4 {[%clk 0:01:01]}  f5+ {[%clk 0:00:07]} 49. gxf5 {[%clk 0:01:00]}  exf5+ {[%clk 0:00:08]} 0-1


[Site "https://www.chess.com"]

[Event "Titled Tuesday Blitz June 6 Early 2023"]
[White "Sielecki, Christof"]
[Black "Mitrabha, Guha"]
[WhiteFideId "4620437"]
[BlackFideId "5057000"]
[WhiteElo "2443"]
[BlackElo "2507"]
[Result "1-0"]
[Round "6"]
[TimeControl "180+2"]
[Date "2023.06.06"]
[WhiteClock "0:00:26"]
[BlackClock "0:00:13"]
[Board "28"]

1. e4 {[%clk 0:03:00]}  c6 {[%clk 0:02:54]} 2. d4 {[%clk 0:03:00]}  d5 {[%clk 0:02:54]} 3. exd5 {[%clk 0:03:01]}  cxd5 {[%clk 0:02:55]} 4. Bd3 {[%clk 0:03:01]}  Nc6 {[%clk 0:02:54]} 5. c3 {[%clk 0:03:01]}  Qc7 {[%clk 0:02:54]} 6. h3 {[%clk 0:03:00]}  g6 {[%clk 0:02:49]} 7. Nf3 {[%clk 0:02:59]}  Bf5 {[%clk 0:02:48]} 8. O-O {[%clk 0:02:59]}  Nf6 {[%clk 0:02:48]} 9. Re1 {[%clk 0:02:59]}  e6 {[%clk 0:02:48]} 10. Bb5 {[%clk 0:02:45]}  h5 {[%clk 0:02:43]} 11. Qa4 {[%clk 0:02:38]}  Bd6 {[%clk 0:02:27]} 12. Ne5 {[%clk 0:02:31]}  O-O {[%clk 0:02:27]} 13. Bf4 {[%clk 0:02:24]}  Rfc8 {[%clk 0:02:13]} 14. Nd2 {[%clk 0:02:24]}  a6 {[%clk 0:02:12]} 15. Bf1 {[%clk 0:01:59]}  b5 {[%clk 0:02:08]} 16. Qd1 {[%clk 0:01:59]}  b4 {[%clk 0:02:04]} 17. Rc1 {[%clk 0:01:31]}  bxc3 {[%clk 0:01:55]} 18. Rxc3 {[%clk 0:01:31]}  Qb7 {[%clk 0:01:52]} 19. Nb3 {[%clk 0:01:27]}  Ne4 {[%clk 0:01:50]} 20. Rxc6 {[%clk 0:01:22]}  Rxc6 {[%clk 0:01:50]} 21. Na5 {[%clk 0:01:22]}  Qxb2 {[%clk 0:01:29]} 22. Rxe4 {[%clk 0:01:10]}  Rc2 {[%clk 0:01:13]} 23. Re2 {[%clk 0:01:02]}  Rxe2 {[%clk 0:01:06]} 24. Bxe2 {[%clk 0:01:01]}  Qxa2 {[%clk 0:01:03]} 25. Nb7 {[%clk 0:00:44]}  Rb8 {[%clk 0:00:42]} 26. Nxd6 {[%clk 0:00:27]}  Rb1 {[%clk 0:00:42]} 27. Bc1 {[%clk 0:00:26]}  Qa1 {[%clk 0:00:30]} 28. Kh2 {[%clk 0:00:25]}  Rxc1 {[%clk 0:00:29]} 29. Qd2 {[%clk 0:00:25]}  Rc2 {[%clk 0:00:17]} 30. Qh6 {[%clk 0:00:25]}  Qxd4 {[%clk 0:00:13]} 31. Ndxf7 {[%clk 0:00:26]} 1-0


[Site "https://www.chess.com"]